bitfinex-derivatives/quotes_BNBF0:USTF0_20250130
["timestamp","ask_amount","ask_price","bid_price","bid_amount"]
[1738279882014,0.27061031,679.52,678.82,0.8033915]
[1738279882313,0.27061031,679.52,678.83,0.80332697]
[1738279882506,0.27061031,679.52,678.84,0.80332697]
[1738279882711,0.27061031,679.52,678.85,0.80332697]
[1738279883008,1.09669963,679.53,678.86,0.80332697]
[1738279883212,0.27060225,679.52,678.87,0.80332697]
[1738279883410,0.27060225,679.52,678.88,0.80332697]
[1738279883607,0.27060225,679.52,678.89,0.80332697]
[1738279883810,0.27060225,679.52,678.9,0.80332697]
[1738279884010,0.27060225,679.52,678.91,0.80332697]
[1738279884211,1.09669963,679.39,678.92,0.80332697]
[1738279884413,1.09669963,679.39,678.93,0.80332697]
[1738279884712,1.09669963,679.39,678.5,1.138]
[1738279884713,0.27060218,679.38,678.94,0.80332697]
[1738279884913,0.27060218,679.38,678.95,0.80332697]
[1738279885112,1.09669963,679.39,678.96,0.80332697]
[1738279885312,1.09669963,679.39,678.97,0.80332697]
[1738279885512,1.09669963,679.39,678.98,0.80332697]
[1738279885713,1.09669963,679.39,678.99,0.80332697]
[1738279885714,0.2706009,679.38,678.99,0.80332697]
[1738279886021,1.09669963,679.39,679.0,0.80332697]
[1738279886212,1.09669963,679.39,679.01,0.80332697]
[1738279886512,1.09669963,679.39,679.02,0.80332697]
[1738279886705,1.09669963,679.39,679.03,0.80332697]
[1738279886910,1.09669963,679.39,679.04,0.80332697]
[1738279887106,1.09669963,679.39,679.05,0.80332697]
[1738279887308,1.09669963,679.37,679.06,0.80332697]
[1738279887613,1.09669963,679.37,679.07,0.80332697]
[1738279887807,1.09669963,679.37,679.08,0.80332697]
[1738279888007,1.09669963,679.37,679.09,0.80332697]
[1738279888206,1.09669963,679.37,679.1,0.80332697]
[1738279888407,1.09669963,679.37,679.11,0.80332697]
[1738279888610,1.09669963,679.37,679.12,0.80325045]
[1738279888813,1.09669963,679.37,679.13,0.80325045]
[1738279889008,1.09669963,679.37,679.14,0.80325045]
[1738279889212,1.09669963,679.37,679.15,0.80324903]
[1738279889409,1.09669963,679.37,679.16,0.80324903]
[1738279889614,1.09669963,679.37,679.17,0.80324903]
[1738279889811,1.09669963,679.37,679.18,0.80324903]
[1738279890016,1.09669963,679.37,679.19,0.80324903]
[1738279890316,1.09669963,679.37,679.2,0.80324903]
[1738279890511,1.09669963,679.37,679.16,1.086]
[1738279890717,1.09669963,679.37,679.17,0.80324861]
[1738279890922,1.09669963,679.37,679.18,0.80325351]
[1738279891118,1.09669963,679.37,679.19,0.80325351]
[1738279891318,1.09669963,679.37,679.16,1.086]
[1738279891519,1.09669963,679.37,679.17,0.80322883]
[1738279891718,1.09669963,679.37,679.18,0.80322883]
[1738279892018,1.09669963,679.37,679.19,0.80322883]
[1738279892319,1.09669963,679.37,679.16,1.086]
[1738279892513,1.09669963,679.37,679.17,0.80320108]
[1738279892716,1.09669963,679.37,679.18,0.80320108]
[1738279892915,1.09669963,679.37,679.16,1.086]
[1738279892916,1.09669963,679.47,679.19,0.80320108]
[1738279893118,1.09669963,679.47,679.16,1.086]
[1738279893319,1.09669963,679.47,679.17,0.80319479]
[1738279893519,1.09669963,679.47,679.18,0.80319479]
[1738279893818,1.09669963,679.47,679.19,0.80319479]
[1738279894023,1.09669963,679.47,679.16,1.086]
[1738279894215,1.09669963,679.47,679.17,0.80318717]
[1738279894416,1.09669963,679.47,679.18,0.80318717]
[1738279894617,1.09669963,679.47,679.16,1.086]
[1738279894819,1.09669963,679.47,679.17,0.80317741]
[1738279895020,1.09669963,679.47,679.18,0.80318263]
[1738279895318,1.09669963,679.47,679.16,1.086]
[1738279895518,1.09669963,679.47,679.17,0.80315672]
[1738279895720,1.09669963,679.47,679.18,0.80315672]
[1738279895912,1.09669963,679.47,679.16,1.086]
[1738279896115,1.09669963,679.48,679.16,1.086]
[1738279897215,1.09669963,679.48,679.17,0.80309436]
[1738279897420,1.09669963,679.48,679.16,1.086]
[1738279899123,1.09669963,679.46,679.16,1.086]
[1738279901222,1.09669963,679.43,679.16,1.086]
[1738279903923,1.09669963,679.42,679.16,1.086]
[1738279906126,0.27063451,679.41,679.16,1.086]
[1738279906320,1.09669963,679.42,679.16,1.086]
[1738279906921,1.09669963,679.41,679.16,1.086]
[1738279907124,0.27063504,679.4,679.16,1.086]
[1738279908121,0.27063984,679.39,679.16,1.086]
[1738279908322,0.27063984,679.38,679.16,1.086]
[1738279908520,0.27063984,679.4,679.16,1.086]
[1738279908718,0.27063984,679.39,679.16,1.086]
[1738279908918,0.27063984,679.38,679.16,1.086]
[1738279909126,0.27063984,679.37,679.16,1.086]
[1738279909321,0.27063984,679.4,679.16,1.086]
[1738279909524,0.27063984,679.39,679.16,1.086]
[1738279909828,0.2706364,679.38,679.16,1.086]
[1738279910025,0.2706364,679.4,679.16,1.086]
[1738279910221,0.29427343,679.64,679.16,1.086]
[1738279910222,1.09669963,679.38,679.16,1.086]
[1738279910525,0.2706364,679.37,679.16,1.086]
[1738279913230,1.09669963,679.38,679.16,1.086]
[1738279913929,1.09669963,679.29,679.16,1.086]
[1738279916732,1.09669963,679.37,679.16,1.086]
[1738279916926,0.2706485,679.36,679.16,1.086]
[1738279919433,1.09669963,679.34,679.16,1.086]
[1738279922830,0.29427343,679.64,679.16,1.086]
[1738279922831,1.09669963,679.35,679.16,1.086]
[1738279923034,0.27065022,679.34,679.16,1.086]
[1738279926133,1.09669963,679.28,679.16,1.086]
[1738279926333,0.2706562,679.27,679.16,1.086]
[1738279926638,1.09669963,679.28,679.16,1.086]
[1738279928238,1.09669963,679.28,679.16,0.321]
[1738279928438,0.27068188,679.27,678.34,1.10092913]
[1738279928633,0.27068188,679.27,678.35,0.80266588]
[1738279928836,0.27068188,679.27,678.36,0.80266588]
[1738279929037,0.27068188,679.27,678.34,1.10092913]
[1738279929038,0.27068188,679.27,678.37,0.80266588]
[1738279929238,0.27068188,679.27,677.92,2.40797384]
[1738279929239,0.27068188,679.27,678.38,0.80266588]
[1738279929539,0.27068188,679.28,678.39,0.80266588]
[1738279929735,0.27068188,679.27,678.4,0.80266588]
[1738279930037,0.27068188,679.26,678.41,0.80266588]
[1738279930238,0.27068188,679.25,678.42,0.80266588]
[1738279930432,0.27068188,679.24,678.43,0.80266588]
[1738279930634,0.27068188,679.28,678.44,0.80249027]
[1738279930832,0.27068188,679.27,678.45,0.80249027]
[1738279931033,0.27068188,679.28,678.46,0.80249027]
[1738279931339,0.27068188,679.28,678.47,0.80248245]
[1738279931540,0.27068188,679.28,678.48,0.80248245]
[1738279931735,0.27068188,679.28,678.49,0.80248245]
[1738279931940,0.27068188,679.28,678.5,0.80248245]
[1738279932142,1.09669963,679.23,678.51,0.80248245]
[1738279932338,1.09669963,679.23,678.52,0.80248245]
[1738279932540,1.09669963,679.23,678.53,0.80248245]
[1738279932734,1.09669963,679.23,678.54,0.80248245]
[1738279932940,1.09669963,679.23,678.55,0.80248245]
[1738279933140,1.09669963,679.23,678.48,1.002]
[1738279933141,1.09669963,679.23,678.56,0.80248245]
[1738279933340,1.09669963,679.23,678.57,0.80248245]
[1738279933540,1.09669963,679.23,678.58,0.80248245]
[1738279933742,1.09669963,679.23,678.59,0.80248245]
[1738279933940,1.09669963,679.23,678.6,0.80248245]
[1738279934236,1.09669963,679.23,678.61,0.80248245]
[1738279934440,1.09669963,679.23,678.62,0.80248245]
[1738279934741,1.09669963,679.23,678.63,0.80248245]
[1738279935040,1.09669963,679.23,678.64,0.80226442]
[1738279935242,1.09669963,679.23,678.65,0.80226442]
[1738279935442,1.09669963,679.23,678.66,0.80226442]
[1738279935642,1.09669963,679.25,678.67,0.80226442]
[1738279935838,1.09669963,679.25,678.68,0.80226442]
[1738279936037,1.09669963,679.25,678.69,0.80226442]
[1738279936243,1.09669963,679.25,678.7,0.80226442]
[1738279936543,1.09669963,679.25,678.71,0.80226442]
[1738279936744,1.09669963,679.25,678.72,0.80226442]
[1738279937043,1.09669963,679.25,678.73,0.80226442]
[1738279937240,1.09669963,679.25,678.74,0.80226442]
[1738279937439,1.09669963,679.25,678.75,0.80226442]
[1738279937643,1.09669963,679.25,678.76,0.80226442]
[1738279937844,1.09669963,679.25,678.77,0.80226442]
[1738279938046,1.09669963,679.25,678.78,0.80226442]
[1738279938246,1.09669963,679.25,678.79,0.80226442]
[1738279938549,1.09669963,679.25,678.8,0.80226442]
[1738279938748,1.09669963,679.25,678.81,0.80226442]
[1738279938949,1.09669963,679.25,678.82,0.80226442]
[1738279939145,1.09669963,679.25,678.48,1.002]
[1738279939146,1.09669963,679.4,678.83,0.80226442]
[1738279939352,1.39107702,679.4,678.84,0.80215431]
[1738279939650,1.39107702,679.4,678.85,0.80215431]
[1738279939852,1.39107702,679.4,678.86,0.8021248]
[1738279940053,1.39107702,679.4,678.87,0.8021248]
[1738279940245,1.39107702,679.4,678.88,0.8021248]
[1738279940446,1.39107702,679.4,678.89,0.8021248]
[1738279940646,1.39107702,679.4,678.9,0.8021248]
[1738279940850,1.39107702,679.4,678.91,0.8021248]
[1738279941049,1.39107702,679.4,678.92,0.8021248]
[1738279941347,1.39107702,679.4,678.48,1.002]
[1738279941548,1.39107702,679.4,678.49,0.80209356]
[1738279941749,1.39107702,679.4,678.5,0.80209356]
[1738279941948,1.39107702,679.4,678.51,0.80209356]
[1738279942148,1.39107702,679.4,678.52,0.80209356]
[1738279942352,1.39107702,679.4,678.53,0.80209356]
[1738279942551,1.39107702,679.4,678.54,0.80209356]
[1738279942745,1.39107702,679.4,678.55,0.80209356]
[1738279942949,1.39107702,679.4,678.48,1.002]
[1738279942950,0.29437739,679.4,678.56,0.80209356]
[1738279943153,0.29437739,679.4,678.57,0.80209356]
[1738279943346,0.29437739,679.4,678.58,0.80209356]
[1738279943546,0.29437739,679.4,678.59,0.80209356]
[1738279943852,0.29437739,679.4,678.6,0.80209356]
[1738279944046,0.29437739,679.4,678.61,0.80209356]
[1738279944251,0.29437739,679.4,678.48,1.002]
[1738279944252,0.29437739,679.4,678.62,0.80209356]
[1738279944551,0.29437739,679.4,678.63,0.80209356]
[1738279944749,0.29437739,679.4,678.64,0.80209356]
[1738279944949,0.29437739,679.4,678.65,0.80209356]
[1738279945149,0.29437739,679.4,678.66,0.80209356]
[1738279945344,0.29437739,679.4,678.67,0.80209356]
[1738279945547,0.29437739,679.4,678.68,0.80209356]
[1738279945754,0.29437739,679.4,678.69,0.80209356]
[1738279946052,0.29437739,679.4,678.7,0.80209356]
[1738279946253,0.27067733,679.39,678.71,0.80209356]
[1738279946552,0.27067733,679.39,678.72,0.80209356]
[1738279946753,0.27067733,679.39,678.73,0.80209356]
[1738279946946,0.27067733,679.39,678.74,0.80209356]
[1738279947151,0.27067733,679.39,678.75,0.80209356]
[1738279947346,0.27067733,679.39,678.48,1.002]
[1738279947347,0.27067733,679.39,678.76,0.80209356]
[1738279947550,0.27067733,679.39,678.77,0.80209356]
[1738279947751,0.27067733,679.39,678.78,0.80222749]
[1738279947950,0.27067733,679.39,678.79,0.80222749]
[1738279948152,0.27067733,679.39,678.8,0.80226639]
[1738279948350,0.27067733,679.39,678.81,0.80226639]
[1738279948553,0.27067733,679.39,678.82,0.80226639]
[1738279948852,0.27067733,679.39,678.83,0.80226639]
[1738279949052,0.27067733,679.39,678.84,0.80226639]
[1738279949251,0.27067733,679.39,678.85,0.80226639]
[1738279949554,1.09669963,679.25,678.86,0.80226639]
[1738279949851,0.270682,679.24,678.87,0.80226639]
[1738279950153,1.09669963,679.25,678.88,0.80226639]
[1738279950345,1.09669963,679.25,678.89,0.80226639]
[1738279950550,1.09669963,679.25,678.9,0.80226639]
[1738279950860,1.09669963,679.25,678.91,0.80226639]
[1738279951050,1.09669963,679.25,678.92,0.80226639]
[1738279951252,1.09669963,679.25,678.93,0.80226639]
[1738279951452,1.09669963,679.25,678.82,1.043]
[1738279951751,1.09669963,679.25,678.83,0.80240593]
[1738279952052,1.09669963,679.25,678.84,0.80240593]
[1738279952252,1.09669963,679.25,678.85,0.80240593]
[1738279952454,1.09669963,679.25,678.86,0.80240593]
[1738279952746,1.09669963,679.25,678.87,0.80240593]
[1738279952955,1.09669963,679.26,678.88,0.80240593]
[1738279953253,1.09669963,679.26,678.89,0.80240593]
[1738279953452,1.09669963,679.26,678.9,0.80240593]
[1738279953752,1.09669963,679.26,678.91,0.80240593]
[1738279953946,1.09669963,679.26,678.92,0.80240593]
[1738279954149,1.09669963,679.26,678.93,0.80257052]
[1738279954348,1.09669963,679.26,678.94,0.80257052]
[1738279954551,1.09669963,679.26,678.82,1.043]
[1738279954749,1.09669963,679.26,678.83,0.80259942]
[1738279954946,1.09669963,679.26,678.84,0.80259942]
[1738279955151,1.09669963,679.26,678.85,0.80259942]
[1738279955352,1.09669963,679.26,678.86,0.80259942]
[1738279955550,1.09669963,679.26,678.87,0.80259942]
[1738279955751,1.09669963,679.26,678.88,0.80259942]
[1738279956054,1.09669963,679.26,678.89,0.80259942]
[1738279956348,1.09669963,679.26,678.9,0.80271075]
[1738279956553,1.09669963,679.26,678.91,0.80271075]
[1738279956753,1.09669963,679.26,678.92,0.80271075]
[1738279956953,1.09669963,679.26,678.93,0.80269479]
[1738279957152,1.09669963,679.26,678.82,1.043]
[1738279957453,1.09669963,679.26,678.83,0.80274979]
[1738279957655,1.09669963,679.26,678.84,0.80274979]
[1738279957854,1.09669963,679.26,678.85,0.80273276]
[1738279958053,1.09669963,679.26,678.86,0.80273276]
[1738279958255,1.09669963,679.26,678.87,0.80273276]
[1738279958450,1.09669963,679.26,678.88,0.80273276]
[1738279958654,1.09669963,679.26,678.89,0.80273276]
[1738279958849,1.09669963,679.26,678.9,0.80273276]
[1738279959050,1.09669963,679.26,678.91,0.80273276]
[1738279959248,1.09669963,679.26,678.92,0.80273276]
[1738279959453,1.09669963,679.26,678.93,0.80273276]
[1738279959650,1.09669963,679.26,678.82,1.043]
[1738279959852,1.09669963,679.23,678.83,0.8028028]
[1738279960051,1.09669963,679.23,678.84,0.8028028]
[1738279960352,1.09669963,679.23,678.85,0.8028028]
[1738279960549,1.09669963,679.23,678.86,0.8028028]
[1738279960856,1.09669963,679.23,678.87,0.8028028]
[1738279961057,1.09669963,679.23,678.88,0.8028028]
[1738279961351,0.27069023,679.22,678.89,0.8028028]
[1738279961556,0.27069023,679.22,678.82,1.043]
[1738279961557,1.09669963,679.23,678.9,0.8028028]
[1738279961756,1.09669963,679.23,678.91,0.8028028]
[1738279961955,1.09669963,679.23,678.92,0.8028028]
[1738279962158,1.09669963,679.23,678.93,0.8028028]
[1738279962360,1.09669963,679.23,678.82,1.043]
[1738279962656,1.09669963,679.23,678.83,0.80293606]
[1738279962657,0.27071604,679.22,678.83,0.80293606]
[1738279962857,0.27071604,679.22,678.82,1.043]
[1738279962858,1.09669963,679.15,678.84,0.80293606]
[1738279963052,1.09669963,679.15,678.85,0.80293606]
[1738279963254,1.09669963,679.15,678.82,1.043]
[1738279967062,1.09669963,679.12,678.82,1.043]
[1738279970464,1.09669963,679.2,678.82,1.043]
[1738279970764,0.27072395,679.19,678.82,1.043]
[1738279971659,0.27072509,679.18,678.82,1.043]
[1738279971858,0.27072509,679.19,678.82,1.043]
[1738279972057,1.09669963,679.2,678.82,1.043]
[1738279972058,0.27072509,679.18,678.82,1.043]
[1738279972258,0.27072509,679.17,678.82,1.043]
[1738279972460,0.27072509,679.16,678.82,1.043]
[1738279972665,0.27072509,679.15,678.82,1.043]
[1738279972857,0.27072509,679.19,678.82,1.043]
[1738279973061,0.27072509,679.18,678.82,1.043]
[1738279973261,0.27072509,679.19,678.82,1.043]
[1738279973465,0.27072509,679.18,678.82,1.043]
[1738279973664,0.27072509,679.19,678.82,1.043]
[1738279973961,1.09669963,679.2,678.82,1.043]
[1738279973962,0.27072509,679.18,678.82,1.043]
[1738279974164,0.27072509,679.19,678.82,1.043]
[1738279975064,0.29447274,679.18,678.82,1.043]
[1738279975268,0.27072509,679.17,678.82,1.043]
[1738279976170,0.29448141,679.16,678.82,1.043]
[1738279976371,0.27072509,679.15,678.82,1.043]
[1738279976571,0.56521084,679.15,678.82,1.043]
[1738279976771,0.27072509,679.14,678.82,1.043]
[1738279981767,0.27077782,679.13,678.82,1.043]
[1738279981972,0.27077782,679.12,678.82,1.043]
[1738279982166,0.27077782,679.14,678.82,1.043]
[1738279982370,0.27077782,679.13,678.82,1.043]
[1738279982569,0.27077782,679.14,678.82,1.043]
[1738279982874,0.27077782,679.13,678.82,1.043]
[1738279983072,0.27077782,679.14,678.82,1.043]
[1738279984775,0.27078205,679.13,678.82,1.043]
[1738279985076,0.27078205,679.12,678.82,1.043]
[1738279985268,0.27078205,679.14,678.82,1.043]
[1738279985471,0.27078205,679.13,678.82,1.043]
[1738279985672,0.27078205,679.14,678.82,1.043]
[1738279993881,1.09669963,679.12,678.82,1.043]
[1738279994083,0.27078205,679.11,678.82,1.043]
[1738279996582,1.09669963,679.12,678.82,1.043]
[1738279996782,0.27078081,679.11,678.82,1.043]
[1738279997183,1.09669963,679.04,678.82,1.043]
[1738279997383,0.27078081,679.03,678.82,1.043]
[1738279999785,1.09669963,678.99,678.82,1.043]
[1738279999987,0.27078081,678.98,678.82,1.043]
[1738280000788,0.27080109,678.97,678.82,1.043]
[1738280000984,0.27080109,678.96,678.82,1.043]
[1738280001286,0.27080109,678.95,678.82,1.043]
[1738280001482,0.27080109,678.98,678.82,1.043]
[1738280003585,0.29448575,679.15,678.82,1.043]
[1738280003586,1.09669963,678.94,678.82,1.043]
[1738280007486,1.09669963,679.08,678.82,1.043]
[1738280007681,0.29452044,679.07,678.82,1.043]
[1738280009985,1.39122007,679.07,678.82,1.043]
[1738280013593,0.27082386,679.06,678.82,1.043]
[1738280013793,0.29452912,679.05,678.82,1.043]
[1738280014092,0.27082386,679.04,678.82,1.043]
[1738280015394,0.27082517,679.03,678.82,1.043]
[1738280015593,0.27082517,679.04,678.82,1.043]
[1738280015895,0.29452912,679.05,678.82,1.043]
[1738280015896,1.09669963,678.95,678.82,1.043]
[1738280016095,0.27082517,678.94,678.82,1.043]
[1738280016888,0.27081652,678.93,678.82,1.043]
[1738280017094,0.27081652,678.92,678.82,1.043]
[1738280017393,0.27081652,678.91,678.82,1.043]
[1738280017694,0.27081652,678.9,678.82,1.043]
[1738280017895,0.27081652,678.94,677.93,0.2950157]
[1738280018094,1.09669963,678.95,677.94,0.80117565]
[1738280018290,0.27081038,678.94,677.95,0.80117565]
[1738280018498,0.27081038,678.94,677.96,0.80117565]
[1738280018795,1.09669963,678.92,677.97,0.80117565]
[1738280019094,0.27081038,678.91,677.98,0.80117565]
[1738280019393,0.27081038,678.91,677.99,0.80117565]
[1738280019594,1.09669963,678.92,678.0,0.80117565]
[1738280019788,1.09669963,678.92,678.01,0.80117565]
[1738280019991,1.09669963,678.92,678.02,0.80117565]
[1738280020189,1.09669963,678.92,678.03,0.80117565]
[1738280020389,1.09669963,678.92,678.04,0.80117565]
[1738280020588,1.09669963,678.92,678.05,0.80117565]
[1738280020793,1.09669963,678.92,678.06,0.80117565]
[1738280021094,1.09669963,678.92,678.07,0.80117565]
[1738280021294,1.09669963,678.92,678.08,0.80117565]
[1738280021488,1.09669963,678.92,678.09,0.80117565]
[1738280021688,1.09669963,678.92,678.1,0.80117565]
[1738280021894,1.09669963,678.92,678.11,0.80117565]
[1738280022195,1.09669963,678.92,678.12,0.80117565]
[1738280022396,1.09669963,678.92,678.13,0.80117565]
[1738280022596,0.29452912,679.05,678.14,0.80117565]
[1738280022793,0.29452912,679.05,678.15,0.80117565]
[1738280022992,0.29452912,679.05,678.16,0.80117565]
[1738280023194,0.29452912,679.05,678.17,0.80117565]
[1738280023395,0.29452912,679.05,678.18,0.80117565]
[1738280023595,0.29452912,679.05,678.19,0.80117565]
[1738280023797,0.29452912,679.05,678.2,0.80117565]
[1738280023993,0.29452912,679.05,678.21,0.80117565]
[1738280024193,0.29452912,679.05,678.22,0.80117565]
[1738280024398,0.29452912,679.05,678.23,0.80117565]
[1738280024600,0.29452912,679.05,678.24,0.80117565]
[1738280024797,0.29452912,679.05,678.25,0.80117565]
[1738280024998,0.29452912,679.05,678.26,0.80117565]
[1738280025203,0.29452912,679.05,678.27,0.80117565]
[1738280025397,0.29452912,679.05,678.28,0.80117565]
[1738280025602,0.29452912,679.05,678.29,0.80117565]
[1738280025903,0.29452912,679.05,678.3,0.80117565]
[1738280026098,0.29452912,679.05,678.31,0.80117565]
[1738280026299,0.29452912,679.05,678.32,0.80117565]
[1738280026501,0.29452912,679.05,678.33,0.80117565]
[1738280026702,0.29452912,679.05,678.34,0.80147283]
[1738280026899,0.29452912,679.05,678.35,0.80147283]
[1738280027099,0.29452912,679.05,678.36,0.80147283]
[1738280027304,0.29452912,679.05,678.37,0.80147283]
[1738280027504,0.29452912,679.05,678.38,0.80147283]
[1738280027703,0.29452912,679.05,678.39,0.80147283]
[1738280027901,0.29452912,679.05,678.4,0.80147283]
[1738280028203,0.29452912,679.05,678.41,0.80147283]
[1738280028407,0.29452912,679.05,678.42,0.80140648]
[1738280028606,0.29452912,679.05,678.43,0.80140648]
[1738280028800,0.29452912,679.05,677.97,0.851]
[1738280028801,0.29452912,679.05,678.44,0.80140648]
[1738280029004,0.29452912,679.05,678.45,0.80140648]
[1738280029202,0.29452912,679.05,678.46,0.80140648]
[1738280029407,0.29452912,679.05,678.47,0.80140648]
[1738280029608,0.29452912,679.05,678.48,0.80140648]
[1738280029809,0.29452912,679.05,678.49,0.80140648]
[1738280030009,0.29452912,679.05,678.5,0.80140648]
[1738280030205,0.29452912,679.05,678.51,0.80140648]
[1738280030405,0.29452912,679.05,678.52,0.80140648]
[1738280030609,0.29452912,679.05,678.53,0.80140648]
[1738280030805,0.29452912,679.05,678.54,0.80140648]
[1738280031008,0.29452912,679.05,678.55,0.80140648]
[1738280031204,0.29452912,679.05,678.56,0.80140648]
[1738280031410,0.29452912,679.05,678.57,0.80140648]
[1738280031612,0.29452912,679.05,678.58,0.80140648]
[1738280031906,0.29452912,679.05,678.59,0.80140648]
[1738280032111,0.29452912,679.05,678.6,0.80140648]
[1738280032312,0.29452912,679.05,678.61,0.80140648]
[1738280032505,0.29452912,679.05,678.62,0.80140648]
[1738280032811,1.09669963,679.41,678.63,0.80098409]
[1738280033011,0.56507292,679.4,678.64,0.80098409]
[1738280033213,0.56507725,679.39,678.65,0.80098409]
[1738280033410,0.27069553,679.38,678.66,0.80098409]
[1738280033605,0.27069553,679.38,678.67,0.80098409]
[1738280033809,0.29438172,679.39,678.68,0.80098409]
[1738280034007,0.27069674,679.38,678.69,0.80098409]
[1738280034206,0.27069674,679.38,678.7,0.80098409]
[1738280034410,0.27069674,679.38,678.71,0.80098409]
[1738280034611,0.27069674,679.38,678.72,0.80098409]
[1738280034812,0.27069674,679.38,678.73,0.80065878]
[1738280035010,0.27069674,679.38,678.74,0.80065878]
[1738280035211,0.27069674,679.38,678.75,0.80065878]
[1738280035406,0.29438172,679.39,678.76,0.80065878]
[1738280035606,0.2706814,679.38,678.77,0.80065878]
[1738280035807,0.2706814,679.38,678.78,0.80065878]
[1738280036006,0.2706814,679.38,678.79,0.80065878]
[1738280036207,0.2706814,679.38,678.8,0.80065878]
[1738280036414,0.2706814,679.38,678.81,0.80065878]
[1738280036713,0.29439039,679.37,677.97,0.851]
[1738280037013,0.2706814,679.36,677.98,1.05852174]
[1738280037206,0.2706814,679.36,677.99,1.05852174]
[1738280037406,0.2706814,679.36,678.0,1.05852174]
[1738280037609,0.2706814,679.36,678.01,1.05852174]
[1738280037807,0.2706814,679.36,678.02,1.05852174]
[1738280038012,0.2706814,679.36,678.03,1.05852174]
[1738280038212,0.2706814,679.36,677.98,1.53802524]
[1738280038213,0.2706814,679.36,678.04,1.05852174]
[1738280038408,0.2706814,679.36,678.05,1.05852174]
[1738280038614,0.29439905,679.35,678.06,1.05852174]
[1738280038913,0.27071933,679.34,678.07,1.05852137]
[1738280039216,0.29440772,679.33,678.08,1.05840778]
[1738280039414,0.27071933,679.32,678.09,0.80037825]
[1738280039614,0.29441639,679.31,678.1,0.80037825]
[1738280039814,0.27071933,679.3,678.11,0.80037825]
[1738280040114,0.27071933,679.3,678.12,0.80037825]
[1738280040307,0.27071933,679.3,677.98,1.53802524]
[1738280040308,0.27071933,679.3,678.13,0.80037825]
[1738280040512,0.27071933,679.3,678.14,0.80037825]
[1738280040713,0.27071933,679.3,678.15,0.80037825]
[1738280040912,0.27071933,679.3,678.16,0.80037825]
[1738280041115,0.27071933,679.3,678.17,0.80037825]
[1738280041414,0.27071933,679.3,678.18,0.80037825]
[1738280041715,0.27071933,679.3,678.19,0.80037825]
[1738280041916,0.27071933,679.3,678.2,0.80037825]
[1738280042116,0.27071933,679.3,678.21,0.80037825]
[1738280042316,0.27071933,679.3,678.22,0.80037825]
[1738280042518,0.27071933,679.3,678.23,0.80037825]
[1738280042719,0.27071933,679.3,678.24,0.80037825]
[1738280042918,0.27071933,679.3,678.25,0.80037825]
[1738280043118,0.27071933,679.3,677.98,1.53802524]
[1738280043315,0.27071933,679.3,677.99,1.05815722]
[1738280043520,0.27071933,679.3,678.0,1.05815722]
[1738280043723,0.27071933,679.3,678.01,1.05815722]
[1738280043919,0.27071933,679.3,678.02,1.05815722]
[1738280044118,0.27071933,679.3,678.03,1.05815722]
[1738280044422,0.27071933,679.3,678.04,1.05815722]
[1738280044622,0.27071933,679.3,678.05,1.05815722]
[1738280044824,0.27071933,679.3,678.06,1.05794078]
[1738280045022,0.27071933,679.3,678.07,1.05794078]
[1738280045222,0.27071933,679.3,677.98,1.53802524]
[1738280045223,0.27071933,679.3,678.08,1.05794078]
[1738280045521,0.27071933,679.3,678.09,1.05794078]
[1738280045821,0.27071933,679.3,678.1,1.05794078]
[1738280046023,0.27071933,679.3,678.11,1.05794078]
[1738280046227,0.27071933,679.3,678.12,1.05794078]
[1738280046525,0.27071933,679.3,678.13,1.05794078]
[1738280046726,0.27071933,679.3,678.14,1.05794078]
[1738280047019,0.27071933,679.3,678.15,1.05794078]
[1738280047219,0.27071933,679.3,678.16,1.05794078]
[1738280047525,0.27071933,679.3,678.17,1.05794078]
[1738280047824,0.27071933,679.3,678.18,1.05794078]
[1738280048026,0.27071933,679.3,678.19,1.05794078]
[1738280048223,0.27071933,679.3,678.15,1.088]
[1738280048224,0.27071933,679.3,678.2,1.05794078]
[1738280048417,0.27071933,679.3,678.21,1.05794078]
[1738280048620,0.27071933,679.3,678.22,1.05794078]
[1738280048834,0.27071933,679.3,678.15,1.088]
[1738280048835,0.27071933,679.3,678.23,1.05794078]
[1738280049026,0.27071933,679.3,678.24,1.05794078]
[1738280049226,0.27071933,679.3,678.25,1.05794078]
[1738280049525,0.27071933,679.3,678.26,1.05794078]
[1738280049726,0.27071933,679.3,678.27,1.05794078]
[1738280050026,0.27071933,679.3,678.28,1.05794078]
[1738280050326,0.27071933,679.3,678.29,1.05794078]
[1738280050526,0.27071933,679.3,678.3,1.05794078]
[1738280050727,0.27071933,679.3,678.31,1.05794078]
[1738280050927,0.27071933,679.3,678.32,1.05794078]
[1738280051122,0.27071933,679.3,678.33,1.05722279]
[1738280051429,0.27071933,679.3,678.34,0.79920896]
[1738280051725,0.27071933,679.3,678.35,0.79912094]
[1738280051926,0.27071933,679.3,678.36,0.79912094]